{"text_format":"1","workbook":"xlsx","n_sheets":2,"sheets":["AIR@PIX","Расчёт"],"not_rendered":{"charts":0,"images":8,"macros":1,"external_links":0,"defined_names":0,"comments":0,"pivot_tables":0},"unopened":[],"bounds":{"document_bytes":16777216,"sheet_cells":100000,"rows_first":2000,"rows_last":500,"rows_between":2000,"halvings":0,"cell_chars":16384,"cell_head_chars":4096},"cells_cut":0,"cells_raw":0,"read":"whole","date_system":"1900"}

{"sheet":"AIR@PIX","index":0,"n_rows":157,"n_cols":17,"rows_kept":157,"cut":false,"hidden":false,"merged":[[4,15,4,16],[6,12,6,13],[73,11,75,16],[78,7,79,13],[80,7,95,13],[8,14,17,17],[140,6,141,13],[142,6,155,13],[156,6,158,13],[119,7,123,13],[124,7,138,13],[101,11,104,13],[105,11,115,13],[116,11,116,13],[18,13,20,16],[22,13,30,16],[35,11,40,16],[41,11,54,16],[56,11,57,16],[58,11,72,16]]}
[null,{"$f":"IF(Расчёт!M10=1,\"1\",IF(Расчёт!M10=2,\"2\"))","v":"1"}]
[null,{"$f":"IF(B17=1,\"0с75\",IF(B17=2,\"1с1\",IF(B17=3,\"1с5\",IF(B17=4,\"2c2\",IF(B17=5,\"3\",IF(B17=6,\"4\",IF(B17=7,\"5c5\",IF(B17=8,\"7c5\"))))))))","v":"0с75"}]
[null,{"$f":"IF(B13=1,\"100\",IF(B13=2,\"200\",IF(B13=3,\"300\")))","v":"100"}]
[null,{"$f":"IF(B14=1,\"10\",IF(B14=2,\"20\",IF(B14=3,\"30\",IF(B14=4,\"40\",IF(B14=5,\"50\",IF(B14=6,\"60\",IF(B14=7,\"70\",IF(B14=8,\"80\"))))))))","v":"10"},null,null,null,null,null,null,null,null,null,null,null,"Опт цена:",null,null,"Стоимость:"]
[null,{"$f":"B17","v":1},null,null,null,null,null,null,null,null,null,null,null,{"$f":"Расчёт!G213","v":27361.26},"*",{"$f":"Расчёт!G214","v":28550.880000000001}]
[null,{"$f":"B3+B4+B5","v":111},null,"ООО \"Аир контроль\", г.Пермь"]
[null,{"$f":"IF(B17<5,\"1\",IF(B17=5,\"1\",IF(B17>5,\"2\")))","v":"1"},"E-mail:","Controls.kpp@GMAIL.com"]
[]
[null,{"$f":"B3+B4+B7","v":111},null,null,"AIR@PIX -",{"$f":"IF(B13=1,\"S\",IF(B13=2,\"SE\",IF(B13=3,\"SV\")))","v":"S"},{"$f":"IF(Расчёт!J3=3,B1,B2)","v":"0с75"},".",{"$f":"IF(B14=1,\"HW\",IF(B14>1,\"HE\"))","v":"HW"},{"$f":"IF(B14=2,\"3\",IF(B14=3,\"9\",IF(B14=4,\"12\",IF(B14=5,\"15\",IF(B14=6,\"18\",IF(B14=7,\"22c5\",IF(B14>7,\"30\",\"   \")))))))","v":"   "},".",{"$f":"IF(Расчёт!J33=1,\"~3\",\"~1\")","v":"~3"},null,null,"Стоимость - Цена на щит управления является приблизительной. Может отличаться при фактическом выставлении счёта, как в сторону удорожания так и в сторону удешевления в зависимоти от изменения цен на комплектующие.                            *Опт цена: - Цена предоставляется постоянным клиента, с которыми заключен договор. Или при разовом заказе от трёх шкафов."]
[]
[]
[null,null,null,"Тип установки",null,null,null,null,null,null,null,"Ввод питания"]
[null,{"$f":"Расчёт!J3","v":1}]
[null,{"$f":"Расчёт!J20","v":1}]
[null,null,null,"Мощность двигателя ",null,null,null,null,null,null,null,"Тип нагревателя"]
[null,{"$f":"Расчёт!J9","v":0}]
[null,{"$f":"Расчёт!J10","v":1}]
[]
[null,false]
[]
[null,false]
[]
[null,false]
[]
[null,false]
[]
[null,false]
[]
[null,false]
[]
[null,false]
[]
[null,false]
[]
[]
[null,null,null,null,"    ",null,null,null,null,null,null,"Циркуляционные насосы, регулирующие клапаны с приводами, а также датчики контроля и сигнализации в расчет не включены. Питание на водяной насос предполагается однофазное 220В, регулирующий привод с питанием 24В и управл сигналом 0…10В. Привод воздушной заслонки 220В."]
[]
[]
[]
[]
[]
[null,null,null,null,null,null,null,null,null,null,null,"    Модули управления включают элементы защиты, соединения и коммутации ведущих торговых марок Legrand и Schneider Electric (автоматические выключатели, токовая и тепловая защита, предохранители), элементы коммутации (контакторы,реле). Элементы контроля и управления (конфигурируемый модульный контроллер Segnetics PIXEL1211). Контроллер имеет простой планировщик на неделю, матричный дисплей для отображения всех настроек, показаний датчиков и состояния системы. Стандартно установлен интерфейс RS485 с протоколом ModBUS-RTU, дополнительно имеется возможность установки модулей LON или ModBUS-TCP.  \n      Модули выполнены в пластиковом корпусе Schneider Electric Kaedra (размер определяется выбранной конфигурацией) степенью защиты IP65 для систем с водяным нагревателем. Оборудование регулирования скорости трёхфазных вентиляторов (частотный преобразователь или трансформаторный регулятор) устанавливаются вне модуля управления."]
[]
[]
[]
[]
[]
[]
[]
[]
[]
[]
[]
[]
[]
[]
[null,null,null,null,null,null,null,null,null,null,null,"     Привод заслонки, датчики контроля и сигнализации и другое навесное оборудование в расчет не включены. Питание на привод воздушной заслонки 220В.        "]
[]
[null,null,null,null,null,null,null,null,null,null,null,"     Модули управления включают элементы защиты, соединения и коммутации ведущих торговых марок Legrand и Schneider Electric (автоматические выключатели, токовая и тепловая защита, предохранители), элементы коммутации (контакторы,реле). Элементы контроля и управления (конфигурируемый модульный контроллер Segnetics PIXEL1211). Контроллер имеет простой планировщик на неделю, матричный дисплей для отображения всех настроек, показаний датчиков и состояния системы. Стандартно установлен интерфейс RS485 с протоколом ModBUS-RTU, дополнительно имеется возможность установки модулей LON или ModBUS-TCP.  \n      Модули выполнены в пластиковом корпусе Schneider Electric Kaedra (размер определяется выбранной конфигурацией) степень защиты IP54 для систем с нагревателем не более 3кВт, для систем с нагревателем большей мощности степень защиты снижена до IP20, за счёт врезки в корпус вентиляционных отверстий. "]
[]
[]
[]
[]
[]
[]
[]
[]
[]
[]
[]
[]
[]
[]
[null,null,null,null,null,null,null,null,null,null,null,"Оборудование регулирования скорости трёхфазных вентиляторов (частотный преобразователь или трансформаторный регулятор) устанавливаются вне модуля управления."]
[]
[]
[]
[]
[null,null,null,null,null,null,null,"    Циркуляционные насосы, регулирующие клапаны с приводами, а также датчики контроля и сигнализации в расчет не включены. Питание на водяной насос предполагается однофазное 220В, регулирующий привод с питанием 24В и управл сигналом 0…10В. Привод воздушной заслонки 220В."]
[]
[null,null,null,null,null,null,null,"     Модули управления включают элементы защиты, соединения и коммутации ведущих торговых марок Legrand и Schneider Electric (автоматические выключатели, токовая и тепловая защита, предохранители), элементы коммутации (контакторы,реле). Элементы контроля и управления (конфигурируемый модульный контроллер Segnetics PIXEL1211). Контроллер имеет простой планировщик на неделю, матричный дисплей для отображения всех настроек, показаний датчиков и состояния системы. Стандартно установлен интерфейс RS485 с протоколом ModBUS-RTU, дополнительно имеется возможность установки модулей LON или ModBUS-TCP.  \n      Модули выполнены в пластиковом корпусе Schneider Electric Kaedra (размер определяется выбранной конфигурацией) степенью защиты IP65 для систем с водяным нагревателем. Оборудование регулирования скорости трёхфазных вентиляторов (частотный преобразователь или трансформаторный регулятор) устанавливаются вне модуля управления."]
[]
[]
[]
[]
[]
[]
[]
[]
[]
[]
[]
[]
[]
[]
[]
[]
[]
[]
[]
[]
[null,null,null,null,null,null,null,null,null,null,null,"Привод заслонки, датчики контроля и сигнализации и другое навесное оборудование в расчет не включены. Питание на привод воздушной заслонки 220В. "]
[]
[]
[]
[null,null,null,null,null,null,null,null,null,null,null,"     Модули управления включают элементы защиты, соединения и коммутации ведущих торговых марок Legrand и Schneider Electric (автоматические выключатели, токовая и тепловая защита, предохранители), элементы коммутации (контакторы,реле). Элементы контроля и управления (конфигурируемый модульный контроллер Segnetics PIXEL1211). Контроллер имеет простой планировщик на неделю, матричный дисплей для отображения всех настроек, показаний датчиков и состояния системы. Стандартно установлен интерфейс RS485 с протоколом ModBUS-RTU, дополнительно имеется возможность установки модулей LON или ModBUS-TCP.  \n      Модули выполнены в пластиковом корпусе Schneider Electric Kaedra (размер определяется выбранной конфигурацией) степень защиты IP54 для систем с нагревателем не более 3кВт, для систем с нагревателем большей мощности степень защиты снижена до IP20, за счёт врезки в корпус вентиляционных отверстий. "]
[]
[]
[]
[]
[]
[]
[]
[]
[]
[]
[null,null,null,null,null,null,null,null,null,null,null,"      Оборудование регулирования скорости трёхфазных вентиляторов (частотный преобразователь или трансформаторный регулятор) устанавливаются вне модуля управления."]
[]
[]
[null,null,null,null,null,null,null,"    Циркуляционные насосы, регулирующие клапаны с приводами, а также датчики контроля и сигнализации в расчет не включены. Питание на водяной насос предполагается однофазное 220В, регулирующий привод с питанием 24В и управл сигналом 0…10В. Привод воздушной заслонки 220В."]
[]
[]
[]
[]
[null,null,null,null,null,null,null,"    Модули управления включают элементы защиты, соединения и коммутации ведущих торговых марок Legrand и Schneider Electric (автоматические выключатели, токовая и тепловая защита, предохранители), элементы коммутации (контакторы,реле). Элементы контроля и управления (конфигурируемый модульный контроллер Segnetics PIXEL1211). Контроллер имеет простой планировщик на неделю, матричный дисплей для отображения всех настроек, показаний датчиков и состояния системы. Стандартно установлен интерфейс RS485 с протоколом ModBUS-RTU, дополнительно имеется возможность установки модулей LON или ModBUS-TCP.  \n      Модули выполнены в пластиковом корпусе Schneider Electric Kaedra (размер определяется выбранной конфигурацией) степенью защиты IP65 для систем с водяным нагревателем. Оборудование регулирования скорости трёхфазных вентиляторов (частотный преобразователь или трансформаторный регулятор) устанавливаются вне модуля управления."]
[]
[]
[]
[]
[]
[]
[]
[]
[]
[]
[]
[]
[]
[]
[]
[null,null,null,null,null,null,"    Привод заслонки, датчики контроля и сигнализации и другое навесное оборудование в расчет не включены. Питание на привод воздушной заслонки 220В.   "]
[]
[null,null,null,null,null,null,"     Модули управления включают элементы защиты, соединения и коммутации ведущих торговых марок Legrand и Schneider Electric (автоматические выключатели, токовая и тепловая защита, предохранители), элементы коммутации (контакторы,реле). Элементы контроля и управления (конфигурируемый модульный контроллер Segnetics PIXEL1211). Контроллер имеет простой планировщик на неделю, матричный дисплей для отображения всех настроек, показаний датчиков и состояния системы. Стандартно установлен интерфейс RS485 с протоколом ModBUS-RTU, дополнительно имеется возможность установки модулей LON или ModBUS-TCP.  \n      Модули выполнены в пластиковом корпусе Schneider Electric Kaedra (размер определяется выбранной конфигурацией) степень защиты IP54 для систем с нагревателем не более 3кВт, для систем с нагревателем большей мощности степень защиты снижена до IP20, за счёт врезки в корпус вентиляционных отверстий. "]
[]
[]
[]
[]
[]
[]
[]
[]
[]
[]
[]
[]
[]
[null,null,null,null,null,null,"     Оборудование регулирования скорости трёхфазных вентиляторов (частотный преобразователь или трансформаторный регулятор) устанавливаются вне модуля управления."]

{"sheet":"Расчёт","index":1,"n_rows":219,"n_cols":14,"rows_kept":219,"cut":false,"hidden":true,"merged":[[210,0,210,1],[5,10,7,10],[190,0,190,6],[198,0,198,6],[201,0,201,6],[204,0,204,6],[208,0,208,6],[209,0,209,1],[158,0,158,6],[160,0,160,6],[168,0,168,6],[181,0,181,6],[183,0,183,6],[186,0,186,6],[133,0,133,6],[148,0,148,6],[155,0,155,6],[51,0,51,6],[56,0,56,6],[59,0,59,6],[67,0,67,6],[74,0,74,6],[80,0,80,6],[97,0,97,6],[99,0,99,6],[118,0,118,6],[124,0,124,6],[34,0,34,3],[34,4,34,6],[47,0,47,3],[47,4,47,6],[23,0,23,3],[23,4,23,6],[0,4,0,6],[2,0,2,3],[2,4,2,6],[12,0,12,3],[12,4,12,6],[0,0,1,0],[0,1,1,1],[0,2,1,2],[0,3,1,3]]}
["Артикул","Наименование","Ед.Изм.","Вход"]
[null,null,null,null,"К-во","контроль","Сумма"]
[null,null,null,null,null,null,null,null,null,1,"Тип установки",null,{"$f":"J3*10+M20","v":11},"Выбор конфигурации"]
["sch09181+09178","Пластиковый модуль на железный щит IP55","шт",2899,null,1,{"$f":"D4*E4*F4","v":0},null,null,1,"Приточный вентилятор, без регулирования"]
["leg 602332","Пластиковый модуль на железный щит","шт",1500,null,1,0,null,null,2,"Приточно-вытяжная установка"]
["sch 13979","Пластиковый щит Kaedra 1*12","шт",2897,null,1,0,null,null,3,"Приточный вентилятор с симисторным регулятором скорости для однофазного вентилятора"]
["sch 13983","Пластиковый щит Kaedra 2*12","шт",3183,{"$f":"IF(J3=1,1,0)","v":1},{"$f":"IF(J20>1,0,1)","v":1},3183]
["sch 13984","Пластиковый щит Kaedra 2*18","шт",3470,{"$f":"IF(J3=2,1,0)","v":0},1,0]
["sch 13985","Пластиковый щит Kaedra 3*12","шт",3470,{"$f":"IF(J20<7,1,0)","v":1},{"$f":"IF(J20=1,0,1)","v":0},0]
["sch 13986","Пластиковый щит Kaedra 3*18","шт",4580,{"$f":"IF(J20>6,1,0)","v":0},{"$f":"IF(J20=1,0,1)","v":0},0,null,null,1,"Мощность двигателя ~380В",null,1,"Мощность двигателя ~220В"]
["sch 13934","Комплект соеденителя для щитов","шт",600,null,1,0,null,null,1,"~380В 0,75кВт ",null,1,"~220В до 1,8А "]
["sar 08831…35","Комплект гермовводов для кабеля","шт",960,null,1,0,null,null,2,"~380В 1,1кВт",null,2,"~220В до 6А"]
[null,null,null,null,null,null,null,null,null,3,"~380В 1,5кВт"]
["sch 83319","Sarel S3D шкаф c платой 400х400х200","шт",null,null,1,{"$f":"D14*E14*F14","v":0},null,null,4,"~380В 2,2кВт"]
["sch 83324","Sarel S3D шкаф c платой 500х400х200","шт",null,null,1,0,null,null,5,"~380В 3кВт"]
["sch 83326","Sarel S3D шкаф c платой 600х400х200","шт",3635,null,1,0,null,null,6,"~380В 4кВт"]
["sch 83327","Sarel S3D шкаф c платой 600х400х250","шт",4555,null,1,0,null,null,7,"~380В 5,5кВт"]
["sch 83335","Sarel S3D шкаф c платой 700х500х250","шт",5785,null,1,0,null,null,8,"~380В 7,5кВт"]
["sch 83343","Sarel S3D шкаф c платой 800х600х200","шт",7383,null,1,0]
["sch 83356","Sarel S3D шкаф c платой 800х600х250","шт",9364,null,1,0,null,null,1,"Тип нагревателя",null,{"$f":"IF(J20=1,1,0)","v":1}]
["sch 83354","Sarel S3D шкаф c платой 1000х600х250","шт",12200,null,1,0,null,null,1,"Водяной нагреватель"]
["sch 51565","Sarel кабельный ввод с мембраной 445x130","шт",2500,null,1,0,null,null,2,"Электронагреватель до 3кВт ~220В"]
["YKM40-04-54","ИЭК шкаф c платой 800х650х250","шт",6270,null,1,0,null,null,3,"Электронагреватель 9кВт ~380В"]
[null,null,null,null,null,null,null,null,null,4,"Электронагреватель 12кВт ~380В"]
["DOP-AS35THTD","3.5\" TFT 320x240 пикс. 65536 цветов","шт",13000,null,1,{"$f":"D25*E25*F25","v":0},null,null,5,"Электронагреватель 15кВт ~380В"]
[null,"Pixel 1211-02-0 c акамулятором","шт",7000,{"$f":"IF(J3>0,1,0)","v":1},1,7000,null,null,6,"Электронагреватель 18кВт ~380В"]
[null,"Pixel 2511-02-0 c акамулятором","шт",7900,null,1,0,null,null,7,"Электронагреватель 22,5кВт ~380В"]
[null,"MR-504-0 5 дискретных выходов + 4 Аналоговых выхода","шт",5000,null,1,0,null,null,8,"Электронагреватель 27кВт ~380В"]
[null,"MR-061-0 6 дискретных выходов на основе симисторов","шт",3755,null,1,0,null,null,9,"Электронагреватель 30кВт ~380В"]
[null,"MR-800-0 релейный модуль (8 дискретных выходов)","шт",3900,null,1,0]
[null,"MR-810-0 модуль входов на переменное напряжение 220В","шт",3800,null,1,0]
[null,"CMH 2G + модуль MC (7AI + 12DI + 2AOut + 8DOut)","шт",16400,null,1,0]
[null,"CMH C2010-1221","шт",9600,null,1,0,null,null,1,"Тип вводного питания"]
[null,"Релейный модуль","шт",3780,null,1,0,null,null,1,"Трёхфазный ввод"]
[null,null,null,null,null,null,null,null,null,2,"Однофазный ввод"]
[null,"Датчик температуры TG-R5/PT1000","шт",1200,null,1,{"$f":"D36*E36*F36","v":0}]
["sch 13944","Пластиковая панель в щит Kaedra 12модулей","шт",300,null,1,0]
["sch 13945","Пластиковая панель в щит Kaedra 18модулей","шт",300,null,1,0]
["sar 87911","Выпускная решётка 120x120 sar 87911","шт",1340,null,1,0]
["sar 87901","Вентилятор + решётка 150x150 sar 87901","шт",2000,null,1,0]
[null,"Вентиляционная решётка","шт",95,{"$f":"IF(J20>2,2,0)","v":0},1,0]
[null,"Вентилятор для удаления тепла из щита","шт",625,null,1,0]
["HD 2544 ZD 3","Реле твердотельное 1 фазное HD2544ZD3 до 17А","шт",755,{"$f":"IF(J20=2,1,IF(J20=3,2,0))","v":0},1,0]
["HD 4044 ZD 3","Реле твердотельное 1 фазное HD4044ZD3 до 28А","шт",837,{"$f":"IF(J20>3,2,0)","v":0},1,0]
["HDН 6044 ZD 3","Реле твердотельное 1 фазное HDН6044ZD3 до 42А","шт",1375,null,1,0]
["HDН 8044 ZD 3","Реле твердотельное 1 фазное HDН8044ZD3 до 56А","шт",1416,null,1,0]
["PTP 061","Радиатор для однофазного реле (серии HD, HDH) до 40А","шт",448,{"$f":"IF(J20=2,1,IF(J20>2,2,0))","v":0},1,0]
[]
["DVPPS02","Источник питания 24В/48Вт/2А","шт",2200,{"$f":"IF(J20>1,1,0)","v":0},1,{"$f":"D49*E49*F49","v":0}]
["ABL7CEM24006","Источник питания 24В/15Вт/0,6А","шт",1800,null,1,{"$f":"D50*E50*F50","v":0}]
["SEM62.1","Трансформатор Siemens SEM62.1","шт",1800,{"$f":"IF(J20=1,1,0)","v":1},1,{"$f":"D51*E51*F51","v":1800}]
[]
["RM17TG20","РЕЛЕ КОНТРОЛЯ ЧЕРЕДОВАНИЯ ОБРЫВА ФАЗ","шт",1855,null,1,{"$f":"D53*E53*F53","v":0}]
["RE11LAMW","РЕЛЕ ВЫД.ВКЛЮЧЕНИЕ  ~/=24-240В СТАТ ВЫХ","шт",1400,null,1,{"$f":"D54*E54*F54","v":0}]
["RE11RAMU","РЕЛЕ ВЫД. ВКЛ =24В, ~24-240В РЕЛ ВЫХ","шт",1400,null,1,{"$f":"D55*E55*F55","v":0}]
["RE11RHMU","РЕЛЕ ВЫД. ВЫКЛ =24В, ~24-240В РЕЛ ВЫХ","шт",1400,null,1,{"$f":"D56*E56*F56","v":0}]
[]
["GS1PPB3","РУБИЛЬНИК  3X315A/B1-B3","шт",19531,null,1,{"$f":"D58*E58*F58","v":0}]
["leg 37308","Распределительный блок  400А","шт",12420,null,1,{"$f":"D59*E59*F59","v":0}]
[]
["GV3P32/24-32","Выключатель автоматический с тепловым реле","шт",6480,null,1,{"$f":"D61*E61*F61","v":0}]
["GV3P40/30-40","Выключатель автоматический с тепловым реле","шт",6540,null,1,0]
["GV3P65/48-65","Выключатель автоматический с тепловым реле","шт",7560,null,1,0]
["GK3EF80/48-80","Выключатель автоматический с тепловым реле","шт",9060,null,1,0]
["VAMU0с63","Выкл. Авт. с тепловым реле ВАМУ 0,4-0,63","шт",1100,{"$f":"IF(J3=1,1,IF(J3=2,2,0))","v":1},{"$f":"IF(J10<6,1,0)","v":1},1100]
["VAMU14","Выкл. Авт. с тепловым реле ВАМУ 9-14А 5,5кВт","шт",1100,{"$f":"IF(J3=1,1,IF(J3=2,2,0))","v":1},{"$f":"IF(J10>5,1,0)","v":0},0]
["VAMU25","Выкл. Авт. с тепловым реле ВАМУ 20-25А 11кВт","шт",1100,null,1,0]
[]
["sch 23794","АВТ. ВЫКЛ. C60a 1П  2A  C","шт",431,{"$f":"IF(J3<4,1,0)","v":1},{"$f":"IF(J20=1,2,1)","v":2},{"$f":"D69*E69*F69","v":862}]
["sch 23794","АВТ. ВЫКЛ. C60а 1П  2A  C","шт",431,{"$f":"IF(J3=3,1,0)","v":0},{"$f":"IF(J10=1,1,0)","v":1},0]
["sch 24399","АВТ. ВЫКЛ. C60N 1П  6A  C","шт",207,{"$f":"IF(J10=2,1,0)","v":0},1,0]
["sch 24401","АВТ. ВЫКЛ. C60N 1П  10A  C","шт",207,null,1,0]
["sch 24403","АВТ. ВЫКЛ. C60N 1П  16A  C","шт",207,{"$f":"IF(J20=2,1,0)","v":0},1,0]
["sch 24404","АВТ. ВЫКЛ. C60N 1П  20A  C","шт",207,null,1,0]
[]
["sch 24335","АВТ. ВЫКЛ. C60N 2П  6A  C","шт",552,null,1,{"$f":"D76*E76*F76","v":0}]
["sch 24336","АВТ. ВЫКЛ. C60N 2П  10A  C","шт",552,null,1,{"$f":"D77*E77*F77","v":0}]
["sch 24337","АВТ. ВЫКЛ. C60N 2П  16A  C","шт",552,null,1,{"$f":"D78*E78*F78","v":0}]
["sch 24338","АВТ. ВЫКЛ. C60N 2П  20A  C","шт",552,null,1,{"$f":"D79*E79*F79","v":0}]
["sch 24339","АВТ. ВЫКЛ. C60N 2П  25A  C","шт",552,null,1,{"$f":"D80*E80*F80","v":0}]
[]
["sch 24348","АВТ. ВЫКЛ. C60N 3П  6A  C","шт",819,null,1,{"$f":"D82*E82*F82","v":0}]
["sch 24349","АВТ. ВЫКЛ. C60N 3П  10A  C","шт",661,{"$f":"IF(J20=4,1,0)","v":0},1,0]
["sch 24350","АВТ. ВЫКЛ. C60N 3П  16A  C","шт",661,{"$f":"IF(J20=3,1,IF(J20=7,1,IF(J3=2,1,0)))","v":0},{"$f":"IF(J10<6,1,0)","v":1},0]
["sch 24351","АВТ. ВЫКЛ. C60N 3П  20A  C","шт",661,{"$f":"IF(J3=1,1,0)","v":1},{"$f":"IF(J20>4,0,1)","v":1},661]
["sch 24352","АВТ. ВЫКЛ. C60N 3П  25A  C","шт",661,{"$f":"IF(J20=5,1,IF(J20=7,1,IF(J20>7,2,0)))","v":0},1,0]
["sch 24353","АВТ. ВЫКЛ. C60N 3П  32A  C","шт",893,{"$f":"IF(J20=5,1,IF(J20=6,1,0))","v":0},1,0]
["sch 24353","АВТ. ВЫКЛ. C60N 3П  32A  C","шт",893,{"$f":"IF(J3=2,1,0)","v":0},{"$f":"IF(J10>5,1,0)","v":0},{"$f":"D88*E88*F88","v":0}]
["sch 24354","АВТ. ВЫКЛ. C60N 3П  40A  C","шт",893,{"$f":"IF(J20=6,1,IF(J20=7,1,0))","v":0},1,0]
["sch 24355","АВТ. ВЫКЛ. C60N 3П  50A  C","шт",1161,{"$f":"IF(J20=8,1,0)","v":0},1,0]
["sch 24356","АВТ. ВЫКЛ. C60N 3П  63A  C","шт",1395,{"$f":"IF(J20=9,1,0)","v":0},1,0]
["sch 18367","АВТ. ВЫКЛ. C120N 3п 100A  C","шт",7140,null,1,0]
["sch 18369","АВТ. ВЫКЛ. C120N 3п 125A  C","шт",9540,null,1,0]
["ВА88-33 120А","АВТ. ВЫКЛ. ВА88-33 3п 120A  C","шт",2060,null,1,0]
["ВА88-33 160А","АВТ. ВЫКЛ. ВА88-33 3п 160A  C","шт",2060,null,1,0]
["ВА88-33 200А","АВТ. ВЫКЛ. ВА88-33 3п 200A  C","шт",3070,null,1,0]
["ИЭК ОПС1 С (II)","Огранечитель импусных перенапряжений 3п","шт",3600,null,1,0]
[]
["leg 37181","Держател плавких вставок","шт",100,{"$f":"IF(J20>2,1,0)","v":0},1,{"$f":"D99*E99*F99","v":0}]
[]
["LC1K0610M7","КОНТАКТОР.3Р,06A,НО,240V50ГЦ.","шт",802,null,1,{"$f":"D101*E101*F101","v":0}]
["LC1D09M7","КОНТАКТОР.3Р,09A,НО+НЗ,240V50ГЦ.","шт",1080,null,1,0]
["LC1D12M7","КОНТАКТОР.3Р,12A,НО+НЗ,240V50ГЦ.","шт",1500,null,1,0]
["LC1D18M7","КОНТАКТОР.3Р,18A,НО+НЗ,240V50ГЦ.","шт",1800,null,1,0]
["LC1D25M7","КОНТАКТОР.3Р,25A,НО+НЗ,240V50ГЦ.","шт",2640,null,1,0]
["PMU0910M","КОНТАКТОР.ПМУ 3Р,09A,НО,240V50ГЦ.","шт",350,{"$f":"IF(J3=1,1,IF(J3=2,2,IF(J3=3,1,0)))","v":1},{"$f":"IF(J10<6,1,0)","v":1},350]
["PMU0910M","КОНТАКТОР.ПМУ 3Р,09A,НО,240V50ГЦ.","шт",350,{"$f":"IF(J20<4,1,0)","v":1},1,350]
["PMU1210M","КОНТАКТОР.ПМУ 3Р,12A,НО,240V50ГЦ.","шт",425,{"$f":"IF(J20=7,1,0)","v":0},1,0]
["PMU1210M","КОНТАКТОР.ПМУ 3Р,12A,НО,240V50ГЦ.","шт",425,{"$f":"IF(J10>5,1,0)","v":0},{"$f":"IF(J3=2,1,0)","v":0},{"$f":"D109*E109*F109","v":0}]
["PMU1810M","КОНТАКТОР.ПМУ 3Р,18A,НО,240V50ГЦ.","шт",453,{"$f":"IF(J20=4,1,IF(J20=5,1,IF(J20=6,1,IF(J20=7,1,IF(J20>7,2,0)))))","v":0},1,0]
["PMU1810M","КОНТАКТОР.ПМУ 3Р,18A,НО,240V50ГЦ.","шт",453,{"$f":"IF(J10>5,1,0)","v":0},1,{"$f":"D111*E111*F111","v":0}]
["PMU2510M","КОНТАКТОР.ПМУ 3Р,25A,НО,240V50ГЦ.","шт",637,null,1,0]
["PMU3210M","КОНТАКТОР.ПМУ 3Р,32A,НО,240V50ГЦ.","шт",820,null,1,0]
["PMU4011М","КОНТАКТОР.ПМУ 3Р,40A,НО,240V50ГЦ.","шт",1260,null,1,0]
["PMU5011М","КОНТАКТОР.ПМУ 3Р,50A,НО,240V50ГЦ.","шт",1440,null,1,0]
["PMU6511М","КОНТАКТОР.ПМУ 3Р,65A,НО,240V50ГЦ.","шт",2135,null,1,0]
["PMU9511М","КОНТАКТОР.ПМУ 3Р,95A,НО,240V50ГЦ.","шт",5000,null,1,0]
["Leg 04049","КОНТАКТОР под автомат 20А 250В","шт",1080,null,1,0]
[]
["RTL1U10","Тепловое реле перегрузки 7-10А","шт",616,null,1,{"$f":"D120*E120*F120","v":0}]
["RTL2U32","Тепловое реле перегрузки 23-32А","шт",616,null,1,{"$f":"D121*E121*F121","v":0}]
["RTL3U40","Тепловое реле перегрузки 30-40А","шт",616,null,1,{"$f":"D122*E122*F122","v":0}]
["RTL3U65","Тепловое реле перегрузки 48-65А","шт",616,null,1,{"$f":"D123*E123*F123","v":0}]
["RTL3U104","Тепловое реле перегрузки 80-104А","шт",616,null,1,{"$f":"D124*E124*F124","v":0}]
[]
["sch RXM4AB1P7 ","РЕЛЕ 4 CO 230В ПЕРЕМ ТОКА 7A","шт",355,null,1,{"$f":"D126*E126*F126","v":0}]
["sch RXM4AB1B7 ","РЕЛЕ 4 CO 24В ПЕРЕМ ТОКА 7A","шт",250,null,1,0]
["sch RXZE2S114M ","КОЛОДКА С РАЗДЕЛЬНЫМИ КОНТ 4CO 27MM 7A","шт",190,null,1,0]
["sch RXZR335 ","ПЛАСТИКОВАЯ СКОБА-ДЕРЖАТЕЛЬ","шт",11,null,1,0]
["sch RSB2A080B7  ","РЕЛЕ 2 CO 24В ПЕРЕМ ТОКА 5A","шт",204,null,1,0]
["sch RSB2A080M7  ","РЕЛЕ 2 CO 220В ПЕРЕМ ТОКА 5A","шт",283,{"$f":"IF(J3=1,1,IF(J3=2,2,IF(J3=3,1,0)))","v":1},{"$f":"IF(J20>6,2,1)","v":1},283]
["sch RSZE1S48M  ","КОЛОДКА С РАЗДЕЛЬНЫМИ КОНТ 2CO 27MM 5A","шт",229,{"$f":"IF(J3=1,1,IF(J3=2,2,IF(J3=3,1,0)))","v":1},{"$f":"IF(J20>6,2,1)","v":1},229]
["sch RSZR215 ","ПЛАСТИКОВАЯ СКОБА-ДЕРЖАТЕЛЬ","шт",8.4,{"$f":"IF(J3=1,1,IF(J3=2,2,IF(J3=3,1,0)))","v":1},{"$f":"IF(J20>6,2,1)","v":1},8.4]
[]
["ATV11HU05M2E","ПРЕОБР ЧАСТОТЫ ATV11 0.18КВТ 220В 1Ф ЕВ","шт",{"$f":"I135*43","v":4940.7},null,1,{"$f":"D135*E135*F135","v":0},null,114.9]
["ATV31H018M2A","ПРЕОБР ЧАСТОТЫ ATV31 0.18КВТ 240В 1Ф АЗ","шт",6137.3899999999994,null,1,0,null,142.72999999999999]
["ATV31H037M2A","ПРЕОБР ЧАСТОТЫ ATV31 0.37КВТ 240В 1Ф АЗ","шт",6379.4800000000005,null,1,0,null,148.36000000000001]
["ATV31H055M2A","ПРЕОБР ЧАСТОТЫ ATV31 0.55КВТ 240В 1Ф АЗ","шт",6949.66,null,1,0,null,161.62]
["ATV31H075M2A","ПРЕОБР ЧАСТОТЫ ATV31 0.75КВТ 240В 1Ф АЗ","шт",7758.4900000000007,null,1,0,null,180.43]
["ATV31H075N4","ПРЕОБР ЧАСТОТЫ ATV31 0.75КВТ 500В 3Ф","шт",{"$f":"I140*43","v":10947.8},null,1,0,null,254.6]
["ATV31HU11N4","ПРЕОБР ЧАСТОТЫ ATV31 1,1КВТ 500В 3Ф","шт",{"$f":"I141*43","v":11645.26},null,1,0,null,270.82]
["ATV31HU15N4","ПРЕОБР ЧАСТОТЫ ATV31 1,5КВТ 500В 3Ф","шт",12049.890000000001,null,1,0,null,280.23]
["ATV31HU22N4","ПРЕОБР ЧАСТОТЫ ATV31 2,2КВТ 500В 3Ф","шт",13327.85,null,1,0,null,309.95]
["ATV31HU30N4","ПРЕОБР ЧАСТОТЫ ATV31 3КВТ 500В 3Ф","шт",15125.25,null,1,0,null,351.75]
["ATV31HU40N4","ПРЕОБР ЧАСТОТЫ ATV31 4КВТ 500В 3Ф","шт",20759.97,null,1,0,null,482.79]
["ATV31HU55N4","ПРЕОБР ЧАСТОТЫ ATV31 5,5КВТ 500В 3Ф","шт",26352.120000000003,null,1,0,null,612.84]
["ATV31HU75N4","ПРЕОБР ЧАСТОТЫ ATV31 7,5КВТ 500В 3Ф","шт",30016.149999999998,null,1,0,null,698.05]
["ATV31HD11N4","ПРЕОБР ЧАСТОТЫ ATV31 11КВТ 500В 3Ф","шт",37516.21,null,1,0,null,872.47]
[]
["ATS01N212QN","УСТР-ВО ПЛАВН ПУСКА ATS01 12A","шт",{"$f":"I150*43","v":6313.2599999999993},null,1,{"$f":"D150*E150*F150","v":0},null,146.82]
["ATS01N222QN","УСТР-ВО ПЛАВН ПУСКА ATS01 22A","шт",{"$f":"I151*43","v":8093.0300000000007},null,1,0,null,188.21]
["ATS01N232QN","УСТР-ВО ПЛАВН ПУСКА ATS01 32A","шт",10212.07,null,1,0,null,237.49]
["ATS01N244Q","УСТР-ВО ПЛАВН ПУСКА ATS01 44A","шт",15606.85,null,1,0,null,362.95]
["ATS01N272Q","УСТР-ВО ПЛАВН ПУСКА ATS01 72A","шт",21976.87,null,1,0,null,511.09]
["ATS01N285Q","УСТР-ВО ПЛАВН ПУСКА ATS01 85A","шт",27065.059999999998,null,1,0,null,629.41999999999996]
[]
["SB002 2,5A","Симисторный регулятор скорости SB002 до 2,5A","шт",4908,{"$f":"IF(J3=3,1,0)","v":0},{"$f":"IF(J10=1,1,0)","v":1},{"$f":"D157*E157*F157","v":0}]
["SB002 5A","Симисторный регулятор скорости SB002 до 5A","шт",6300,{"$f":"IF(J3=3,1,0)","v":0},{"$f":"IF(J10=2,1,0)","v":0},{"$f":"D158*E158*F158","v":0}]
[]
["11-004-000000716","Regin TBI-30 потенциометр","шт",19.399999999999999,null,1,{"$f":"D160*E160*F160","v":0}]
[]
["sch XB5AD21","Переключатель 22мм 2 позиции","шт",420,null,1,{"$f":"D162*E162*F162","v":0}]
["sch XB5AD33","Переключатель 22мм 3 позиции","шт",420,null,1,0]
["sch XB7ED25P","Переключатель c фиксацией 22мм 2 позиции","шт",293,null,1,0]
["sch XB7ED33P","Переключатель c фиксацией 22мм 3 позиции","шт",293,{"$f":"IF(J3=2,1,0)","v":0},1,0]
["sch 15151","Суппорт, для переключателя XB7","шт",120,{"$f":"IF(J3=2,1,0)","v":0},1,{"$f":"D166*E166*F166","v":0}]
["XB7ES545P","Кнопка 22ММ 230-240В Аварийного останова","шт",358,null,1,0]
["sch XB7EH03M1P","КНОПКА 22ММ 230-240В С ПОДСВ.","шт",300,null,1,0]
[]
["XB5-AVB3"," лампа зеленая 24В","шт",360,null,1,{"$f":"D170*E170*F170","v":0}]
["XB5-AVB5"," лампа желтая 24В","шт",360,null,1,0]
["XB5-AVB4"," лампа красная 24В","шт",360,null,1,0]
["XB5-AVМ3"," лампа зеленая 220В","шт",600,null,1,0]
["XB5-AVМ5"," лампа желтая 220В","шт",600,null,1,0]
["XB5-AVМ4"," лампа красная 220В","шт",600,null,1,0]
["XB7EV03BP"," лампа зеленая 24В","шт",110,null,1,0]
["XB7EV04BP"," лампа красная 24В","шт",110,null,1,0]
["XB7EV05BP"," лампа желтая 24В","шт",110,null,1,0]
["XB7EV03МP"," лампа зеленая 220В","шт",124,null,1,0]
["XB7EV05МP"," лампа желтая 220В","шт",168,null,1,0]
["XB7EV04МP"," лампа красная 220В","шт",124,null,1,0]
[]
["ZBY 6102","Держатель маркировки + маркировка","м",60,null,1,{"$f":"D183*E183*F183","v":0}]
[]
["leg 37404","Legrand EN 50 022 DIN-рейка глубокая 7.5мм","м",217,{"$f":"IF(J3<4,1,0)","v":1},1,{"$f":"D185*E185*F185","v":217}]
["leg 37407","Legrand EN 50 022 DIN-рейка глубокая 15мм","м",320,null,1,{"$f":"D186*E186*F186","v":0}]
[]
["leg ","Legrand кабельный канал 40х40мм ","м",240,{"$f":"IF(J3<4,1,0)","v":1},1,{"$f":"D188*E188*F188","v":240}]
["leg 36202","Legrand Lina 25 кабельный канал 25х60мм ","м",240,null,1,{"$f":"D189*E189*F189","v":0}]
["leg 36207","Legrand Lina 25 кабельный канал 40х60мм ","м",348,null,1,{"$f":"D190*E190*F190","v":0}]
[]
["leg 390 61","Legrang Viking 3 зажим наборный серый 4мм","шт",30,{"$f":"IF(J20=1,12,IF(J20=2,15,IF(J20=3,12,IF(J20=4,12,IF(J20=5,12,IF(J20=6,9,IF(J20>6,9,0)))))))","v":12},{"$f":"IF(J3=2,6,0)","v":0},{"$f":"D192*(E192+F192)","v":360}]
["leg 393 01","Legrand Viking 3 зажим наборный синий 4мм","шт",37,{"$f":"IF(J20=1,3,IF(J20>1,3,0))","v":3},{"$f":"IF(J3=2,2,0)","v":0},{"$f":"D193*(E193+F193)","v":111}]
["leg 393 70","Legrand Viking 3 зажим наборный земля 5мм","шт",83,0,1,{"$f":"D194*E194*F194","v":0}]
["leg 390 64","Legrand Viking 3 зажим наборный серый 10мм","шт",84,{"$f":"IF(J20=3,3,IF(J20=4,3,IF(J20=5,3,IF(J20=6,6,IF(J20>6,9,IF(J10>5,3,0))))))","v":0},1,{"$f":"D195*(E195+F195)","v":84}]
["leg 393 03","Legrand Viking 3 зажим наборный синий 10мм","шт",84,{"$f":"IF(J20>2,1,IF(J10>5,1,0))","v":0},1,{"$f":"D196*E196*F196","v":0}]
["leg 393 37","Legrand Viking 3 зажим наборный красный 4мм","шт",30,null,1,{"$f":"D197*E197*F197","v":0}]
["leg 393 74","Legrand Viking 3 зажим наборный земля 10мм","шт",180,null,1,{"$f":"D198*E198*F198","v":0}]
[]
["leg 372 60","Legrang Viking 3 клеммник пружинный 4х5мм серый","шт",31,{"$f":"IF(J20=1,24,IF(J20=2,21,IF(J20>2,21,0)))","v":24},1,{"$f":"D200*E200*F200","v":744}]
["leg 372 00","Legrang Viking 3 клеммник пружинный 4х5мм синий","шт",32,null,1,{"$f":"D201*E201*F201","v":0}]
[]
["iek YNS20-3-063","Шина соединительная типа PIN 3ф до 63А","м",520,{"$f":"IF(J3<4,0.5,0)","v":0.5},1,{"$f":"D203*E203*F203","v":260}]
["iek YND10-2-07-100","Шина нулевая 2х7 в корпусе","шт",315,null,1,{"$f":"D204*E204*F204","v":0}]
[]
["cab ПВ3 1,5","Провод ПВ3 1,5мм ","м",15,{"$f":"IF(J20=1,50,IF(J20=2,65,IF(J20=3,70,IF(J20=4,70,IF(J20=5,75,IF(J20=6,80,IF(J20>6,100,0)))))))","v":50},{"$f":"IF(J3=2,10,0)","v":0},{"$f":"D206*(E206+F206)","v":750}]
["cab ПВ3 4","Провод ПВ3 4мм","м",40,{"$f":"IF(J10>5,10,0)","v":0},1,{"$f":"D207*E207*F207","v":0}]
["cab ПВ3 6","Провод ПВ3 6мм","м",50,null,1,{"$f":"D208*E208*F208","v":0}]
[]
[null,null,"компл.",1200,1,1,{"$f":"D210*E210*F210","v":1200}]
[null,null,"шт",4000,{"$f":"IF(J20=1,1,IF(J20=2,1.1,IF(J20=3,1.2,IF(J20=4,1.2,IF(J20=5,1.2,IF(J20=6,1.2,IF(J20>6,1.3,0)))))))","v":1},1,{"$f":"D211*E211*F211","v":4000}]
[null,null,null,"Итого",null,null,{"$f":"SUM(G4:G211)","v":23792.400000000001}]
[null,null,null,"С учетом наценки 15%",null,null,{"$f":"G212*1.15","v":27361.26}]
[null,null,null,"С учетом наценки 20%",null,null,{"$f":"G212*1.2","v":28550.880000000001}]
[]
[]
["Приточная установка"]
["Приточно-вытяжная установка"]
["Приточная с авто рег. скорости вент. ~1ф"]